fUST/lending_fUST_20260228
["ID","MTS","AMOUNT","RATE_DAILY","PERIOD"]
[406914318,1772272253351,-500.0,0.00013972,2]
[406914319,1772272253360,-500.0,0.00013972,2]
[406914320,1772272253370,-1348.92,0.00013972,2]
[406914321,1772272253380,-500.0,0.00013972,2]
[406914322,1772272253390,-500.0,0.00013972,2]
[406914323,1772272253400,-500.0,0.00013972,2]
[406914324,1772272253410,-500.0,0.00013972,2]
[406914325,1772272253419,-500.0,0.00013972,2]
[406914326,1772272253430,-500.0,0.00013972,2]
[406914327,1772272253439,-500.0,0.00013972,2]
[406914328,1772272253449,-500.0,0.00013972,2]
[406914329,1772272253460,-500.0,0.00013972,2]
[406914330,1772272253470,-582.85167688,0.00013972,2]
[406914331,1772272253488,-500.0,0.00013972,2]
[406914332,1772272253499,-500.0,0.00013972,2]
[406914333,1772272253509,-500.0,0.00013972,2]
[406914334,1772272253519,-500.0,0.00013972,2]
[406914335,1772272253529,-500.0,0.00013972,2]
[406914336,1772272253539,-500.0,0.00013972,2]
[406914337,1772272253551,-289.06222605,0.00013972,2]
[406914338,1772272253561,-303.26948184,0.00013972,2]
[406914339,1772272253571,-500.0,0.00013972,2]
[406914340,1772272253581,-500.0,0.00013972,2]
[406914341,1772272253777,-500.0,0.00013972,2]
[406914342,1772272253819,-539.8,0.00013972,2]
[406914343,1772272253828,-500.0,0.00013972,2]
[406914344,1772272253837,-500.0,0.00013972,2]
[406914345,1772272253847,-1479.57,0.00013972,2]
[406914346,1772272253856,-500.0,0.00013972,2]
[406914347,1772272253865,-500.0,0.00013972,2]
[406914348,1772272253875,-500.0,0.00013972,2]
[406914349,1772272253884,-500.0,0.00013972,2]
[406914350,1772272253894,-500.0,0.00013972,2]
[406914351,1772272253903,-500.0,0.00013972,2]
[406914352,1772272253913,-852.21,0.00013972,2]
[406914353,1772272253922,-500.0,0.00013972,2]
[406914354,1772272253932,-500.0,0.00013972,2]
[406914355,1772272253941,-1464.72,0.00013972,2]
[406914356,1772272253951,-500.0,0.00013972,2]
[406914357,1772272253960,-500.0,0.00013972,2]
[406914358,1772272253970,-500.0,0.00013972,2]
[406914359,1772272253980,-500.0,0.00013972,2]
[406914360,1772272253989,-500.0,0.00013972,2]
[406914361,1772272253999,-500.0,0.00013972,2]
[406914362,1772272254008,-500.0,0.00013972,2]
[406914363,1772272254018,-500.0,0.00013972,2]
[406914364,1772272254028,-531.0834252,0.00013972,2]
[406914365,1772272254038,-500.0,0.00013972,2]
[406914366,1772272254048,-7680.28,0.00013972,2]
[406914367,1772272254058,-500.0,0.00013972,2]
[406914368,1772272254067,-500.0,0.00013972,2]
[406914369,1772272254077,-500.0,0.00013972,2]
[406914370,1772272254087,-500.0,0.00013972,2]
[406914371,1772272254097,-500.0,0.00013972,2]
[406914372,1772272254106,-1873.88,0.00013972,2]
[406914373,1772272254116,-552.80151937,0.00013972,2]
[406914374,1772272254126,-500.0,0.00013972,2]
[406914375,1772272254136,-500.0,0.00013972,2]
[406914376,1772272254146,-500.0,0.00013972,2]
[406914377,1772272254156,-500.0,0.00013972,2]
[406914378,1772272254166,-2135.5,0.00013972,2]
[406914379,1772272254176,-500.0,0.00013972,2]
[406914380,1772272254185,-500.0,0.00013972,2]
[406914381,1772272254195,-500.0,0.00013972,2]
[406914382,1772272254205,-500.0,0.00013972,2]
[406914383,1772272254215,-500.0,0.00013972,2]
[406914384,1772272254224,-500.0,0.00013972,2]
[406914385,1772272254233,-500.0,0.00013972,2]
[406914386,1772272254243,-500.0,0.00013972,2]
[406914387,1772272254253,-602.25889058,0.00013972,2]
[406914388,1772272254263,-549.81,0.00013972,2]
[406914389,1772272254273,-500.0,0.00013972,2]
[406914390,1772272254283,-1150.33,0.00013972,2]
[406914391,1772272254293,-500.0,0.00013972,2]
[406914392,1772272254302,-1732.61,0.00013972,2]
[406914393,1772272254312,-500.0,0.00013972,2]
[406914394,1772272254322,-500.0,0.00013972,2]
[406914395,1772272254332,-500.0,0.00013972,2]
[406914396,1772272254341,-500.0,0.00013972,2]
[406914397,1772272254351,-500.0,0.00013972,2]
[406914398,1772272254361,-500.0,0.00013972,2]
[406914399,1772272254370,-500.0,0.00013972,2]
[406914400,1772272254380,-500.0,0.00013972,2]
[406914401,1772272254389,-959.62,0.00013972,2]
[406914402,1772272254399,-500.0,0.00013972,2]
[406914403,1772272254408,-500.0,0.00013972,2]
[406914404,1772272254418,-563.98,0.00013972,2]
[406914405,1772272254427,-500.0,0.00013972,2]
[406914406,1772272254436,-3657.47,0.00013972,2]
[406914407,1772272254446,-500.0,0.00013972,2]
[406914408,1772272254457,-579.19,0.00013972,2]
[406914409,1772272254472,-500.0,0.00013972,2]
[406914410,1772272254483,-500.0,0.00013972,2]
[406914411,1772272254493,-10464.46,0.00013972,2]
[406914412,1772272254504,-1052.03,0.00013972,2]
[406914413,1772272254514,-500.0,0.00013972,2]
[406914414,1772272254526,-500.0,0.00013972,2]
[406914415,1772272254537,-500.0,0.00013972,2]
[406914416,1772272254547,-1033.8,0.00013972,2]
[406914417,1772272254559,-500.0,0.00013972,2]
[406914418,1772272254570,-500.0,0.00013972,2]
[406914419,1772272254580,-500.0,0.00013972,2]
[406914420,1772272254590,-500.0,0.00013972,2]
[406914421,1772272254600,-500.0,0.00013972,2]
[406914422,1772272254610,-500.0,0.00013972,2]
[406914423,1772272254619,-500.0,0.00013972,2]
[406914424,1772272254629,-500.0,0.00013972,2]
[406914425,1772272254639,-500.0,0.00013972,2]
[406914426,1772272254649,-500.0,0.00013972,2]
[406914427,1772272254660,-500.0,0.00013972,2]
[406914428,1772272254670,-500.0,0.00013972,2]
[406914429,1772272254680,-500.0,0.00013972,2]
[406914430,1772272254689,-500.0,0.00013972,2]
[406914431,1772272254699,-500.0,0.00013972,2]
[406914432,1772272254709,-500.0,0.00013972,2]
[406914433,1772272254718,-500.0,0.00013972,2]
[406914434,1772272254728,-500.0,0.00013972,2]
[406914435,1772272254737,-500.0,0.00013972,2]
[406914436,1772272254747,-500.0,0.00013972,2]
[406914437,1772272254756,-8294.16,0.00013972,2]
[406914438,1772272254766,-500.0,0.00013972,2]
[406914439,1772272254778,-500.0,0.00013972,2]
[406914440,1772272254787,-500.0,0.00013972,2]
[406914441,1772272254797,-500.0,0.00013972,2]
[406914442,1772272254806,-500.0,0.00013972,2]
[406914443,1772272254815,-500.0,0.00013972,2]
[406914444,1772272254824,-314.0164832,0.00013972,2]
[406914445,1772272254833,-156.2224273,0.00013972,2]
[406914446,1772272254843,-500.0,0.00013972,2]
[406914447,1772272254853,-1508.42,0.00013972,2]
[406914448,1772272254864,-500.0,0.00013972,2]
[406914449,1772272254874,-582.34,0.00013972,2]
[406914450,1772272254883,-500.0,0.00013972,2]
[406914451,1772272254893,-500.0,0.00013972,2]
[406914452,1772272254902,-1895.29,0.00013972,2]
[406914453,1772272254916,-500.0,0.00013972,2]
[406914454,1772272254926,-500.0,0.00013972,2]
[406914455,1772272254935,-500.0,0.00013972,2]
[406914456,1772272254945,-500.0,0.00013972,2]
[406914457,1772272254954,-500.0,0.00013972,2]
[406914458,1772272254964,-500.0,0.00013972,2]
[406914459,1772272254974,-10141.38,0.00013972,2]
[406914460,1772272254983,-500.0,0.00013972,2]
[406914461,1772272254993,-1961.53,0.00013972,2]
[406914462,1772272255002,-500.0,0.00013972,2]
[406914463,1772272255011,-500.0,0.00013972,2]
[406914464,1772272255022,-500.0,0.00013972,2]
[406914465,1772272255031,-500.0,0.00013972,2]
[406914466,1772272255041,-2240.5,0.00013972,2]
[406914467,1772272255051,-500.0,0.00013972,2]
[406914468,1772272255060,-500.0,0.00013972,2]
[406914469,1772272255070,-4404.35,0.00013972,2]
[406914470,1772272255080,-500.0,0.00013972,2]
[406914471,1772272255089,-500.0,0.00013972,2]
[406914472,1772272255099,-945.13,0.00013972,2]
[406914473,1772272255108,-500.0,0.00013972,2]
[406914474,1772272255117,-500.0,0.00013972,2]
[406914475,1772272255127,-517.44578125,0.00013972,2]
[406914476,1772272255135,-500.0,0.00013972,2]
[406914477,1772272255145,-500.0,0.00013972,2]
[406914478,1772272255155,-500.0,0.00013972,2]
[406914479,1772272255165,-500.0,0.00013972,2]
[406914480,1772272255175,-500.0,0.00013972,2]
[406914481,1772272255184,-500.0,0.00013972,2]
[406914482,1772272255194,-500.0,0.00013972,2]
[406914483,1772272255203,-500.0,0.00013972,2]
[406914484,1772272255214,-500.0,0.00013972,2]
[406914485,1772272255224,-500.0,0.00013972,2]
[406914486,1772272255234,-1000.93,0.00013972,2]
[406914487,1772272255243,-500.0,0.00013972,2]
[406914488,1772272255252,-500.0,0.00013972,2]
[406914489,1772272255261,-500.0,0.00013972,2]
[406914490,1772272255271,-969.19,0.00013972,2]
[406914491,1772272255283,-1504.29,0.00013972,2]
[406914492,1772272255292,-1234.31,0.00013972,2]
[406914493,1772272255301,-500.0,0.00013972,2]
[406914494,1772272255311,-500.0,0.00013972,2]
[406914495,1772272255320,-500.0,0.00013972,2]
[406914496,1772272255329,-594.89,0.00013972,2]
[406914497,1772272255338,-500.0,0.00013972,2]
[406914498,1772272255348,-500.0,0.00013972,2]
[406914499,1772272255357,-500.0,0.00013972,2]
[406914500,1772272255367,-1212.49,0.00013972,2]
[406914501,1772272255376,-500.0,0.00013972,2]
[406914502,1772272255386,-485.15276829,0.00013972,2]
[406914503,1772272255395,-500.0,0.00013972,2]
[406914504,1772272255404,-500.0,0.00013972,2]
[406914505,1772272255414,-511.95,0.00013972,2]
[406914506,1772272255423,-500.0,0.00013972,2]
[406914507,1772272255432,-500.0,0.00013972,2]
[406914508,1772272255441,-500.0,0.00013972,2]
[406914509,1772272255451,-500.0,0.00013972,2]
[406914510,1772272255463,-4100.94,0.00013972,2]
[406914511,1772272255474,-934.37,0.00013972,2]
[406914512,1772272255486,-500.0,0.00013972,2]
[406914513,1772272255495,-500.0,0.00013972,2]
[406914514,1772272255505,-500.0,0.00013972,2]
[406914515,1772272255515,-500.0,0.00013972,2]
[406914516,1772272255526,-500.0,0.00013972,2]
[406914517,1772272255536,-832.4,0.00013972,2]
[406914518,1772272255547,-500.0,0.00013972,2]
[406914519,1772272255557,-500.0,0.00013972,2]
[406914520,1772272255566,-500.0,0.00013972,2]
[406914521,1772272255576,-500.0,0.00013972,2]
[406914522,1772272255585,-500.0,0.00013972,2]
[406914523,1772272255594,-500.0,0.00013972,2]
[406914524,1772272255603,-500.0,0.00013972,2]
[406914525,1772272255613,-500.0,0.00013972,2]
[406914526,1772272255623,-737.05,0.00013972,2]
[406914527,1772272255632,-500.0,0.00013972,2]
[406914528,1772272255641,-500.0,0.00013972,2]
[406914529,1772272255651,-500.0,0.00013972,2]
[406914530,1772272255660,-500.0,0.00013972,2]
[406914531,1772272255669,-500.0,0.00013972,2]
[406914532,1772272255679,-1000.0,0.00013972,2]
[406914533,1772272255689,-500.0,0.00013972,2]
[406914534,1772272255698,-974.45,0.00013972,2]
[406914535,1772272255708,-500.0,0.00013972,2]
[406914536,1772272255717,-500.0,0.00013972,2]
[406914537,1772272255726,-500.0,0.00013972,2]
[406914538,1772272255736,-500.0,0.00013972,2]
[406914539,1772272255745,-500.0,0.00013972,2]
[406914540,1772272255754,-500.0,0.00013972,2]
[406914541,1772272255763,-500.0,0.00013972,2]
[406914542,1772272255774,-43383.63074352,0.0001398,2]
[406914543,1772272256051,-10653.1402446,0.0001398,2]
[406914544,1772272256063,-4248.32795475,0.0001398,2]
[406914545,1772272256159,-500.0,0.00013698,2]
[406914546,1772272256169,-5021.03616514,0.0001398,2]
[406914547,1772272256384,-500.0,0.00013698,2]
[406914548,1772272256393,-61935.97824018,0.00013832,2]
[406914549,1772272256709,-5000.0,9.98e-05,2]
[406914550,1772272256718,-500.0,0.00013698,2]
[406914551,1772272256728,-500.0,0.00013698,2]
[406914552,1772272256737,-14919.75298577,0.00013832,2]
[406914553,1772272256746,-500.0,0.00013972,2]
[406914554,1772272256755,-500.0,0.00013972,2]
[406914555,1772272256764,-355.68,0.00013972,2]
[406914556,1772272256774,-19934.69669722,0.0001398,2]
[406914557,1772272256784,-500.0,0.00013993,2]
[406914558,1772272256793,-18119.2664858,0.00014,2]
[406914559,1772272256859,-500.0,0.00013698,2]
[406914560,1772272256869,-13525.54839169,0.00013698,2]
[406914561,1772272256887,-3231.334724,0.00013698,2]
[406914562,1772272256896,-22871.3353312,0.00014,2]
[406914564,1772272453953,154.75,0.000158,120]
[406914565,1772272462525,1642.61907918,9.501e-05,2]
[406914588,1772272539324,168.9333,6.836e-05,2]
[406914590,1772272586286,4755.83422971,9.501e-05,2]
[406914591,1772272609487,-350.0,0.00019578,30]
[406914592,1772272609525,-350.0,0.00019578,30]
[406914593,1772272609562,-214.0,0.00019578,30]
[406914594,1772272609600,-150.0,0.00019639,30]
[406914595,1772272609637,-191.0,0.00019639,30]
[406914596,1772272609683,-239.0,0.00020101,30]
[406914597,1772272609721,-150.0,0.00020265,30]
[406914598,1772272609759,-153.0,0.00020265,30]
[406914599,1772272609796,-209.0,0.00020515,30]
[406914600,1772272609831,-170.0,0.00020664,30]
[406914601,1772272609868,-184.0,0.00020867,120]
[406914602,1772272609902,-221.0,0.00020961,30]
[406914603,1772272609936,-159.0,0.0002112,30]
[406914604,1772272609972,-163.0,0.00021532,120]
[406914605,1772272610009,-258.0,0.00022363,30]
[406914606,1772272610047,-150.0,0.00022756,30]
[406914607,1772272610090,-188.0,0.00022756,30]
[406914608,1772272610132,-800.0,0.00022944,30]
[406914609,1772272610174,-299.0,0.00023015,30]
[406914610,1772272610213,-209.0,0.00023556,30]
[406914611,1772272610250,-182.0,0.00024178,120]
[406914612,1772272610286,-161.0,0.00024549,120]
[406914613,1772272610320,-193.0,0.00024563,30]
[406914614,1772272610360,-239.040161,0.00025829,30]
[406914615,1772272610399,-545.42,0.00027232,30]
[406914616,1772272610441,-1090.84,0.00028894,30]
[406914617,1772272610482,-2225.72,0.00029518,30]
[406914618,1772272610527,-1636.26,0.00030556,30]
[406914619,1772272610584,-2225.72,0.00031295,30]
[406914620,1772272610625,-2181.67,0.00032218,30]
[406914621,1772272610670,-3482.79,0.00032876,120]
[406914622,1772272610709,-1000.0,0.00033,120]
[406914623,1772272610749,-1142.519998,0.00033,30]
[406914624,1772272610800,-2225.72,0.00033071,60]
[406914625,1772272610853,-155.0,0.00033425,60]
[406914626,1772272610893,-2727.09,0.0003388,30]
[406914627,1772272610928,-474.0,0.00034821,120]
[406914628,1772272610962,-2225.72,0.00034848,60]
[406914629,1772272610996,-3272.51,0.00035542,30]
[406914630,1772272611030,-233.75,0.00035542,120]
[406914631,1772272611066,-3482.79,0.00035616,120]
[406914632,1772272611099,-13749.0,0.000361,30]
[406914633,1772272611133,-2225.72,0.00036625,90]
[406914634,1772272611167,-501.0,0.00036821,120]
[406914635,1772272611203,-3817.93,0.00037204,30]
[406914636,1772272611237,-467.5,0.00037711,120]
[406914637,1772272611276,-1459.467956,0.000379,33]
[406914638,1772272611326,-3482.79,0.00038356,120]
[406914639,1772272611361,-227.976758,0.00038356,120]
[406914640,1772272611401,-678.90403,0.00038356,120]
[406914641,1772272611437,-678.90403,0.00038356,120]
[406914642,1772272611473,-678.90403,0.00038356,120]
[406914643,1772272611507,-678.90403,0.00038356,120]
[406914644,1772272611539,-678.90403,0.00038356,120]
[406914645,1772272611571,-678.90403,0.00038356,120]
[406914646,1772272611603,-678.90403,0.00038356,120]
[406914647,1772272611637,-678.90403,0.00038356,120]
[406914648,1772272611673,-678.90403,0.00038356,120]
[406914649,1772272611707,-678.90403,0.00038356,120]
[406914650,1772272611871,-678.90403,0.00038356,120]
[406914651,1772272611906,-678.90403,0.00038356,120]
[406914652,1772272611939,-678.90403,0.00038356,120]
[406914653,1772272611971,-678.90403,0.00038356,120]
[406914654,1772272612003,-678.90403,0.00038356,120]
[406914655,1772272612036,-678.90403,0.00038356,120]
[406914656,1772272612070,-678.90403,0.00038356,120]
[406914657,1772272612103,-678.90403,0.00038356,120]
[406914658,1772272612135,-678.90403,0.00038356,120]
[406914659,1772272612170,-678.904023,0.00038356,120]
[406914660,1772272612204,-796.274883,0.00038356,120]
[406914661,1772272612246,-796.274883,0.00038356,120]
[406914662,1772272612279,-796.274883,0.00038356,120]
[406914663,1772272612310,-796.274883,0.00038356,120]
[406914664,1772272612342,-796.274883,0.00038356,120]
[406914665,1772272612376,-796.274883,0.00038356,120]
[406914666,1772272612411,-796.274883,0.00038356,120]
[406914667,1772272612446,-796.274883,0.00038356,120]
[406914668,1772272612479,-796.274883,0.00038356,120]
[406914669,1772272612514,-796.274883,0.00038356,120]
[406914670,1772272612549,-796.274883,0.00038356,120]
[406914671,1772272612584,-796.274883,0.00038356,120]
[406914672,1772272612619,-796.274883,0.00038356,120]
[406914673,1772272612654,-796.274883,0.00038356,120]
[406914674,1772272612687,-796.274883,0.00038356,120]
[406914675,1772272612724,-796.274883,0.00038356,120]
[406914676,1772272612759,-796.274883,0.00038356,120]
[406914677,1772272612791,-796.274883,0.00038356,120]
[406914678,1772272612824,-796.274883,0.00038356,120]
[406914679,1772272612856,-796.27488,0.00038356,120]
[406914680,1772272612889,-151.0,0.00038356,120]
[406914681,1772272612920,-268.084129,0.00038356,120]
[406914682,1772272612951,-151.0,0.00038356,120]
[406914683,1772272612984,-151.0,0.00038356,120]
[406914684,1772272613017,-151.0,0.00038356,120]
[406914685,1772272613048,-151.0,0.00038356,120]
[406914686,1772272613080,-151.0,0.00038356,120]
[406914687,1772272613110,-151.0,0.00038356,120]
[406914688,1772272613141,-151.0,0.00038356,120]
[406914689,1772272613174,-151.0,0.00038356,120]
[406914690,1772272613206,-151.0,0.00038356,120]
[406914691,1772272613240,-151.0,0.00038356,120]
[406914692,1772272613272,-151.0,0.00038356,120]
[406914693,1772272613302,-151.0,0.00038356,120]
[406914694,1772272613333,-151.0,0.00038356,120]
[406914695,1772272613366,-151.0,0.00038356,120]
[406914696,1772272613406,-283.107777,0.00038356,120]
[406914697,1772272613439,-151.0,0.00038356,120]
[406914698,1772272613472,-151.0,0.00038356,120]
[406914699,1772272613504,-160.880486,0.00038356,120]
[406914700,1772272613537,-546.23404,0.00038356,120]
[406914701,1772272613568,-546.23404,0.00038356,120]
[406914702,1772272613599,-546.23404,0.00038356,120]
[406914703,1772272613634,-546.23404,0.00038356,120]
[406914704,1772272613667,-546.23404,0.00038356,120]
[406914705,1772272613699,-546.23404,0.00038356,120]
[406914706,1772272613732,-546.23404,0.00038356,120]
[406914707,1772272613762,-546.23404,0.00038356,120]
[406914708,1772272613794,-546.23404,0.00038356,120]
[406914709,1772272613826,-546.23404,0.00038356,120]
[406914710,1772272613858,-546.23404,0.00038356,120]
[406914711,1772272613892,-546.23404,0.00038356,120]
[406914712,1772272613925,-546.23404,0.00038356,120]
[406914713,1772272613957,-546.23404,0.00038356,120]
[406914714,1772272613989,-546.23404,0.00038356,120]
[406914715,1772272614021,-546.23404,0.00038356,120]
[406914716,1772272614054,-546.23404,0.00038356,120]
[406914717,1772272614086,-546.23404,0.00038356,120]
[406914718,1772272614119,-546.23404,0.00038356,120]
[406914719,1772272614154,-546.234042,0.00038356,120]
[406914720,1772272614190,-1000.0,0.000384,33]
[406914721,1772272614224,-2225.72,0.00038401,90]
[406914722,1772272614260,-528.0,0.00038821,120]
[406914723,1772272614295,-4363.35,0.00038866,30]
[406914724,1772272614328,-1000.0,0.000389,33]
[406914725,1772272614362,-1000.0,0.000394,33]
[406914726,1772272614395,-2837.317018,0.000397,35]
[406914727,1772272614429,-701.25,0.0003988,120]
[406914728,1772272614463,-1000.0,0.000399,33]
[406914729,1772272614511,-2225.72,0.00040178,120]
[406914730,1772272614543,-1500.0,0.000402,35]
[406914731,1772272614574,-1000.0,0.000404,33]
[406914732,1772272614609,-4908.77,0.00040528,30]
[406914733,1772272614645,-1500.0,0.000407,35]
[406914734,1772272614678,-555.0,0.00040821,120]
[406914735,1772272614712,-502.92,0.00040993,120]
[406914736,1772272614745,-3482.79,0.00041095,120]
[406914737,1772272614779,-1329.67,0.00041095,120]
[406914738,1772272614811,-1329.67,0.00041095,120]
[406914739,1772272614844,-1329.67,0.00041095,120]
[406914740,1772272614889,-1329.67,0.00041095,120]
[406914741,1772272615159,-1329.67,0.00041095,120]
[406914742,1772272615196,-1329.67,0.00041095,120]
[406914743,1772272615233,-1329.67,0.00041095,120]
[406914744,1772272615272,-1329.67,0.00041095,120]
[406914745,1772272615310,-1329.67,0.00041095,120]
[406914746,1772272615348,-1329.67,0.00041095,120]
[406914747,1772272615387,-1329.67,0.00041095,120]
[406914748,1772272615425,-1329.67,0.00041095,120]
[406914749,1772272615463,-1329.67,0.00041095,120]
[406914750,1772272615502,-1329.67,0.00041095,120]
[406914751,1772272615537,-1329.67,0.00041095,120]
[406914752,1772272615572,-1329.67,0.00041095,120]
[406914753,1772272615609,-1329.67,0.00041095,120]
[406914754,1772272615648,-1329.67,0.00041095,120]
[406914755,1772272615688,-1329.67,0.00041095,120]
[406914756,1772272615726,-1329.67,0.00041095,120]
[406914757,1772272615763,-1329.67,0.00041095,120]
[406914758,1772272615797,-1329.67,0.00041095,120]
[406914759,1772272615832,-1329.67,0.00041095,120]
[406914760,1772272615868,-1329.82,0.00041095,120]
[406914761,1772272615902,-195.2480805,0.000411,120]
[406914762,1772272615937,-195.24,0.000411,120]
[406914763,1772272615971,-151.85961816,0.000411,120]
[406914764,1772272616005,-151.85961816,0.000411,120]
[406914765,1772272616038,-151.85961816,0.000411,120]
[406914766,1772272616072,-151.85961816,0.000411,120]
[406914767,1772272616104,-151.85961816,0.000411,120]
[406914768,1772272616137,-151.85,0.000411,120]
[406914769,1772272616175,-200.0,0.000412,65]
[406914770,1772272616209,-1500.0,0.000412,35]
[406914771,1772272616245,-500.0,0.00041235,30]
[406914772,1772272616287,-203.0,0.00041235,30]
[406914773,1772272616326,-181.08010149,0.00041235,30]
[406914774,1772272616364,-502.92,0.00041622,120]
[406914775,1772272616399,-500.0,0.00041709,47]
[406914776,1772272616434,-250.0,0.00041709,47]
[406914777,1772272616473,-174.61919141,0.00041709,47]
[406914778,1772272616512,-500.0,0.00041912,30]
[406914779,1772272616548,-2243.77,0.00042,30]
[406914780,1772272616584,-2575.25,0.00042,30]
[406914781,1772272616623,-935.0,0.00042049,120]
[406914782,1772272616668,-5454.19,0.0004219,30]
[406914783,1772272616709,-200.0,0.000422,67]
[406914784,1772272616747,-502.92,0.00042252,120]
[406914785,1772272616782,-367.41720469,0.00042428,120]
[406914786,1772272616819,-500.0,0.00042428,120]
[406914787,1772272616855,-250.0,0.00042428,120]
[406914788,1772272616895,-168.3888056,0.00042428,120]
[406914789,1772272616930,-250.0,0.00042439,30]
[406914790,1772272616965,-500.0,0.00042439,30]
[406914791,1772272616999,-256.85648935,0.00042439,30]
[406914792,1772272617034,-250.0,0.00042439,30]
[406914793,1772272617069,-162.380719,0.00042439,30]
[406914794,1772272617103,-582.0,0.00042821,120]
[406914795,1772272617137,-502.92,0.00042882,120]
[406914796,1772272617172,-200.0,0.000432,70]
[406914797,1772272617210,-502.92,0.00043512,120]
[406914798,1772272617249,-3482.79,0.00043835,120]
[406914799,1772272617288,-500.0,0.00043836,120]
[406914800,1772272617325,-500.0,0.00043891,120]
[406914801,1772272617362,-500.0,0.00043946,120]
[406914802,1772272617397,-466.58970389,0.00044,120]
[406914803,1772272617434,-500.0,0.00044118,30]
[406914804,1772272617474,-502.92,0.00044142,120]
[406914805,1772272617511,-200.0,0.000442,73]
[406914806,1772272617547,-1168.75,0.00044218,120]
[406914807,1772272617581,-177.2,0.00044389,120]
[406914808,1772272617616,-502.92,0.00044771,120]
[406914809,1772272617652,-554.48761884,0.00044821,120]
[406914810,1772272617687,-2243.77,0.00045,30]
[406914811,1772272617722,-2575.25,0.00045,30]
[406914812,1772272617797,-203.0,0.000452,76]
[406914813,1772272617833,-502.92,0.00045401,120]
[406914814,1772272617866,-503.98073806,0.0004544,60]
[406914815,1772272617898,-400.0,0.0004599,30]
[406914816,1772272617931,-502.92,0.00046031,120]
[406914817,1772272617964,-475.0,0.00046058,120]
[406914818,1772272617995,-475.0,0.00046058,120]
[406914819,1772272618027,-475.0,0.00046058,120]
[406914820,1772272618059,-475.0,0.00046058,120]
[406914821,1772272618091,-475.0,0.00046058,120]
[406914822,1772272618125,-475.0,0.00046058,120]
[406914823,1772272618162,-475.0,0.00046058,120]
[406914824,1772272618206,-475.0,0.00046058,120]
[406914825,1772272618248,-1000.0,0.00046058,120]
[406914826,1772272618289,-1000.0,0.00046058,120]
[406914827,1772272618328,-1000.0,0.00046058,120]
[406914828,1772272618371,-1000.0,0.00046058,120]
[406914829,1772272618414,-1000.0,0.00046058,120]
[406914830,1772272618461,-1000.0,0.00046058,120]
[406914831,1772272618505,-1000.0,0.00046058,120]
[406914832,1772272618553,-1000.0,0.00046058,120]
[406914833,1772272618594,-1000.0,0.00046058,120]
[406914834,1772272618637,-1000.0,0.00046058,120]
[406914835,1772272618676,-1000.0,0.00046058,120]
[406914836,1772272618717,-1000.0,0.00046058,120]
[406914837,1772272618757,-1000.0,0.00046058,120]
[406914838,1772272618795,-1000.0,0.00046058,120]
[406914839,1772272618831,-1000.0,0.00046058,120]
[406914840,1772272618865,-606.099,0.00046058,120]
[406914841,1772272618902,-160.0,0.00046376,120]